[Event "Early Titled Tuesday Blitz | February 8 2022"]
[White "Tarasova, Viktoriya"]
[Black "Gontcharov, Vladislav"]
[WhiteFideId "4175840"]
[BlackFideId "4123492"]
[WhiteElo "2182"]
[BlackElo "2503"]
[Result "0-1"]
[Round "11"]
[TimeControl "180+1"]
[Date "2022.02.08"]
[WhiteClock "0:00:04"]
[BlackClock "0:00:09"]

1. d4 {[%clk 0:02:59]}  Nf6 {[%clk 0:02:59]} 2. c4 {[%clk 0:02:54]}  e6 {[%clk 0:02:59]} 3. Nc3 {[%clk 0:02:53]}  Bb4 {[%clk 0:02:58]} 4. Nf3 {[%clk 0:02:52]}  c5 {[%clk 0:02:55]} 5. g3 {[%clk 0:02:50]}  d5 {[%clk 0:02:46]} 6. cxd5 {[%clk 0:02:49]}  Nxd5 {[%clk 0:02:43]} 7. Bd2 {[%clk 0:02:48]}  cxd4 {[%clk 0:02:41]} 8. Nxd4 {[%clk 0:02:47]}  O-O {[%clk 0:02:38]} 9. Bg2 {[%clk 0:02:46]}  Nb6 {[%clk 0:02:31]} 10. Nb3 {[%clk 0:02:44]}  Nc4 {[%clk 0:02:30]} 11. Qc2 {[%clk 0:02:34]}  a5 {[%clk 0:02:17]} 12. a3 {[%clk 0:02:30]}  Be7 {[%clk 0:01:59]} 13. O-O {[%clk 0:02:28]}  a4 {[%clk 0:01:57]} 14. Ne4 {[%clk 0:02:21]}  b5 {[%clk 0:01:46]} 15. Nc1 {[%clk 0:02:03]}  Nxd2 {[%clk 0:01:41]} 16. Nxd2 {[%clk 0:02:01]}  Ra7 {[%clk 0:01:41]} 17. Nd3 {[%clk 0:01:52]}  Rc7 {[%clk 0:01:37]} 18. Qb1 {[%clk 0:01:50]}  Nc6 {[%clk 0:01:34]} 19. e3 {[%clk 0:01:46]}  Na5 {[%clk 0:01:29]} 20. Rd1 {[%clk 0:01:42]}  Rd7 {[%clk 0:01:28]} 21. Nf3 {[%clk 0:01:32]}  Nb3 {[%clk 0:01:22]} 22. Nfe5 {[%clk 0:01:27]}  Rd6 {[%clk 0:01:08]} 23. Ra2 {[%clk 0:01:15]}  Qc7 {[%clk 0:01:06]} 24. Be4 {[%clk 0:00:54]}  f5 {[%clk 0:00:55]} 25. Bf3 {[%clk 0:00:50]}  Rfd8 {[%clk 0:00:54]} 26. Be2 {[%clk 0:00:43]}  Bf6 {[%clk 0:00:53]} 27. f4 {[%clk 0:00:42]}  Bb7 {[%clk 0:00:52]} 28. Nf3 {[%clk 0:00:28]}  Be4 {[%clk 0:00:36]} 29. Nfe1 {[%clk 0:00:22]}  Qc4 {[%clk 0:00:19]} 30. Kf2 {[%clk 0:00:18]}  Qc7 {[%clk 0:00:15]} 31. h3 {[%clk 0:00:17]}  Qc6 {[%clk 0:00:15]} 32. g4 {[%clk 0:00:16]}  Qb6 {[%clk 0:00:15]} 33. g5 {[%clk 0:00:16]}  Be7 {[%clk 0:00:15]} 34. Qc2 {[%clk 0:00:14]}  Rd5 {[%clk 0:00:15]} 35. Qc3 {[%clk 0:00:13]}  Bf8 {[%clk 0:00:14]} 36. Raa1 {[%clk 0:00:12]}  Nxa1 {[%clk 0:00:13]} 37. Rxa1 {[%clk 0:00:13]}  Qb7 {[%clk 0:00:14]} 38. Rd1 {[%clk 0:00:12]}  Rc8 {[%clk 0:00:13]} 39. Qd2 {[%clk 0:00:12]}  Be7 {[%clk 0:00:13]} 40. h4 {[%clk 0:00:11]}  Qa7 {[%clk 0:00:09]} 41. h5 {[%clk 0:00:09]}  Rcd8 {[%clk 0:00:09]} 42. h6 {[%clk 0:00:10]}  gxh6 {[%clk 0:00:08]} 43. gxh6 {[%clk 0:00:10]}  Bf6 {[%clk 0:00:09]} 44. Kf1 {[%clk 0:00:08]}  Kh8 {[%clk 0:00:09]} 45. Qb4 {[%clk 0:00:06]}  Qf7 {[%clk 0:00:09]} 46. Ne5 {[%clk 0:00:05]}  Bxe5 {[%clk 0:00:09]} 47. Rxd5 {[%clk 0:00:06]}  Bxd5 {[%clk 0:00:09]} 48. fxe5 {[%clk 0:00:06]}  Qg6 {[%clk 0:00:09]} 49. Qh4 {[%clk 0:00:05]}  Rg8 {[%clk 0:00:09]} 50. Kf2 {[%clk 0:00:04]}  Qg1# {[%clk 0:00:09]} 0-1


[Site "https://www.chess.com"]

[Event "Early Titled Tuesday Blitz | February 8 2022"]
[White "Todorovic, Bojan"]
[Black "Sharapov, Evgeny"]
[WhiteFideId "917087"]
[BlackFideId "14103133"]
[WhiteElo "2266"]
[BlackElo "2367"]
[Result "1/2-1/2"]
[Round "11"]
[TimeControl "180+1"]
[Date "2022.02.08"]
[WhiteClock "0:00:06"]
[BlackClock "0:00:13"]

1. Nf3 {[%clk 0:02:59]}  c5 {[%clk 0:02:59]} 2. c4 {[%clk 0:02:58]}  Nc6 {[%clk 0:02:58]} 3. g3 {[%clk 0:02:58]}  e5 {[%clk 0:02:57]} 4. d3 {[%clk 0:02:55]}  g6 {[%clk 0:02:57]} 5. Bg2 {[%clk 0:02:54]}  Bg7 {[%clk 0:02:56]} 6. O-O {[%clk 0:02:54]}  d6 {[%clk 0:02:56]} 7. Nc3 {[%clk 0:02:53]}  Nge7 {[%clk 0:02:56]} 8. a3 {[%clk 0:02:47]}  a5 {[%clk 0:02:55]} 9. Rb1 {[%clk 0:02:41]}  O-O {[%clk 0:02:54]} 10. Bd2 {[%clk 0:02:41]}  Rb8 {[%clk 0:02:54]} 11. Nd5 {[%clk 0:02:22]}  Nxd5 {[%clk 0:02:53]} 12. cxd5 {[%clk 0:02:21]}  Ne7 {[%clk 0:02:46]} 13. e4 {[%clk 0:02:20]}  b5 {[%clk 0:02:46]} 14. b4 {[%clk 0:02:18]}  cxb4 {[%clk 0:02:45]} 15. axb4 {[%clk 0:02:17]}  a4 {[%clk 0:02:45]} 16. Be3 {[%clk 0:02:02]}  Bg4 {[%clk 0:02:41]} 17. Qd2 {[%clk 0:01:54]}  Bxf3 {[%clk 0:02:40]} 18. Bxf3 {[%clk 0:01:54]}  Qd7 {[%clk 0:02:39]} 19. d4 {[%clk 0:01:51]}  Rfc8 {[%clk 0:02:37]} 20. Be2 {[%clk 0:01:49]}  f5 {[%clk 0:02:22]} 21. f4 {[%clk 0:01:16]}  fxe4 {[%clk 0:02:12]} 22. dxe5 {[%clk 0:01:15]}  dxe5 {[%clk 0:02:12]} 23. d6 {[%clk 0:01:15]}  Nf5 {[%clk 0:02:08]} 24. Qd5+ {[%clk 0:01:07]}  Kh8 {[%clk 0:01:59]} 25. Bc5 {[%clk 0:01:05]}  exf4 {[%clk 0:01:52]} 26. Rxf4 {[%clk 0:01:04]}  Rd8 {[%clk 0:01:34]} 27. Rd1 {[%clk 0:00:53]}  a3 {[%clk 0:01:32]} 28. g4 {[%clk 0:00:54]}  Nxd6 {[%clk 0:01:32]} 29. Bxd6 {[%clk 0:00:53]}  Qxd6 {[%clk 0:01:28]} 30. Qxd6 {[%clk 0:00:50]}  Rxd6 {[%clk 0:01:28]} 31. Rxd6 {[%clk 0:00:50]}  Be5 {[%clk 0:01:13]} 32. Ra6 {[%clk 0:00:43]}  Bxf4 {[%clk 0:01:10]} 33. Rxa3 {[%clk 0:00:43]}  Bd6 {[%clk 0:01:01]} 34. Ra5 {[%clk 0:00:43]}  Rc8 {[%clk 0:00:42]} 35. Rxb5 {[%clk 0:00:41]}  Rc2 {[%clk 0:00:42]} 36. Kf2 {[%clk 0:00:30]}  Rb2 {[%clk 0:00:41]} 37. Ke3 {[%clk 0:00:27]}  Bxb4 {[%clk 0:00:40]} 38. g5 {[%clk 0:00:23]}  h5 {[%clk 0:00:34]} 39. Bc4 {[%clk 0:00:20]}  Kg7 {[%clk 0:00:31]} 40. Rb7+ {[%clk 0:00:19]}  Kf8 {[%clk 0:00:30]} 41. Kxe4 {[%clk 0:00:17]}  Bc3 {[%clk 0:00:25]} 42. Rxb2 {[%clk 0:00:15]}  Bxb2 {[%clk 0:00:25]} 43. h3 {[%clk 0:00:07]}  Bc1 {[%clk 0:00:24]} 44. Bd3 {[%clk 0:00:06]}  Bxg5 {[%clk 0:00:23]} 45. Ke5 {[%clk 0:00:06]}  Kf7 {[%clk 0:00:23]} 46. Be4 {[%clk 0:00:06]}  Bf6+ {[%clk 0:00:21]} 47. Kf4 {[%clk 0:00:05]}  Kg7 {[%clk 0:00:21]} 48. Kg3 {[%clk 0:00:04]}  Kh6 {[%clk 0:00:20]} 49. Kf4 {[%clk 0:00:03]}  Be7 {[%clk 0:00:20]} 50. Kg3 {[%clk 0:00:04]}  Bd6+ {[%clk 0:00:19]} 51. Kf3 {[%clk 0:00:04]}  Kg5 {[%clk 0:00:19]} 52. Kg2 {[%clk 0:00:04]}  Kf6 {[%clk 0:00:18]} 53. Bd3 {[%clk 0:00:04]}  g5 {[%clk 0:00:17]} 54. Bc2 {[%clk 0:00:05]}  Bc7 {[%clk 0:00:17]} 55. Bd3 {[%clk 0:00:05]}  Ke5 {[%clk 0:00:17]} 56. Bc2 {[%clk 0:00:06]}  Kf4 {[%clk 0:00:17]} 57. Bg6 {[%clk 0:00:06]}  h4 {[%clk 0:00:16]} 58. Bh5 {[%clk 0:00:06]}  Bd6 {[%clk 0:00:15]} 59. Bg4 {[%clk 0:00:06]}  Ke3 {[%clk 0:00:15]} 60. Kf1 {[%clk 0:00:06]}  Kf4 {[%clk 0:00:13]} 61. Kg2 {[%clk 0:00:06]}  Be5 {[%clk 0:00:13]} 62. Kf1 {[%clk 0:00:06]}  Bd6 {[%clk 0:00:13]} 63. Kg2 {[%clk 0:00:06]} 1/2-1/2


[Site "https://www.chess.com"]

[Event "Early Titled Tuesday Blitz | February 8 2022"]
[White "Tologon tegin, Semetei"]
[Black "Wagner, Dennis"]
[WhiteFideId "13800574"]
[BlackFideId "24650684"]
[WhiteElo "2258"]
[BlackElo "2355"]
[Result "0-1"]
[Round "11"]
[TimeControl "180+1"]
[Date "2022.02.08"]
[WhiteClock "0:01:53"]
[BlackClock "0:01:32"]

1. e4 {[%clk 0:03:00]}  c5 {[%clk 0:02:57]} 2. Nc3 {[%clk 0:03:00]}  e6 {[%clk 0:02:56]} 3. Nf3 {[%clk 0:02:58]}  Nc6 {[%clk 0:02:52]} 4. Bb5 {[%clk 0:02:57]}  Nd4 {[%clk 0:02:51]} 5. Nxd4 {[%clk 0:02:56]}  cxd4 {[%clk 0:02:50]} 6. Ne2 {[%clk 0:02:56]}  Qb6 {[%clk 0:02:46]} 7. Bd3 {[%clk 0:02:56]}  Ne7 {[%clk 0:02:38]} 8. b3 {[%clk 0:02:49]}  Nc6 {[%clk 0:02:37]} 9. Bb2 {[%clk 0:02:50]}  Bc5 {[%clk 0:02:34]} 10. a3 {[%clk 0:02:49]}  a5 {[%clk 0:02:32]} 11. f4 {[%clk 0:02:46]}  O-O {[%clk 0:02:27]} 12. O-O {[%clk 0:02:46]}  d6 {[%clk 0:02:12]} 13. Ng3 {[%clk 0:02:45]}  f5 {[%clk 0:02:08]} 14. exf5 {[%clk 0:02:44]}  exf5 {[%clk 0:02:09]} 15. Bc4+ {[%clk 0:02:39]}  Kh8 {[%clk 0:02:09]} 16. d3 {[%clk 0:02:40]}  Ne7 {[%clk 0:02:04]} 17. Re1 {[%clk 0:02:23]}  d5 {[%clk 0:02:03]} 18. b4 {[%clk 0:02:18]}  axb4 {[%clk 0:01:55]} 19. axb4 {[%clk 0:02:17]}  Rxa1 {[%clk 0:01:54]} 20. Qxa1 {[%clk 0:02:17]}  Qxb4 {[%clk 0:01:47]} 21. Bxd4 {[%clk 0:02:07]}  Bxd4+ {[%clk 0:01:36]} 22. Qxd4 {[%clk 0:02:06]}  Qxe1+ {[%clk 0:01:37]} 23. Nf1 {[%clk 0:02:05]}  dxc4 {[%clk 0:01:36]} 24. Qc5 {[%clk 0:01:54]}  cxd3 {[%clk 0:01:33]} 25. cxd3 {[%clk 0:01:53]}  Bd7 {[%clk 0:01:32]} 0-1


[Site "https://www.chess.com"]

[Event "Early Titled Tuesday Blitz | February 8 2022"]
[White "Tregubov, Pavel V."]
[Black "Fajdetic, Hrvoje"]
[WhiteFideId "4115341"]
[BlackFideId "14501945"]
[WhiteElo "2341"]
[BlackElo "2140"]
[Result "0-1"]
[Round "11"]
[TimeControl "180+1"]
[Date "2022.02.08"]
[WhiteClock "0:01:02"]
[BlackClock "0:00:46"]

1. e4 {[%clk 0:03:00]}  e6 {[%clk 0:02:49]} 2. d4 {[%clk 0:03:00]}  d5 {[%clk 0:02:49]} 3. exd5 {[%clk 0:03:01]}  exd5 {[%clk 0:02:49]} 4. Nf3 {[%clk 0:03:02]}  Bd6 {[%clk 0:02:50]} 5. c4 {[%clk 0:03:01]}  c6 {[%clk 0:02:49]} 6. Bd3 {[%clk 0:02:59]}  Ne7 {[%clk 0:02:49]} 7. O-O {[%clk 0:03:00]}  dxc4 {[%clk 0:02:49]} 8. Bxc4 {[%clk 0:02:59]}  O-O {[%clk 0:02:49]} 9. Nc3 {[%clk 0:03:00]}  Nd7 {[%clk 0:02:50]} 10. Re1 {[%clk 0:02:59]}  Nb6 {[%clk 0:02:50]} 11. Bb3 {[%clk 0:02:59]}  Ned5 {[%clk 0:02:49]} 12. Bg5 {[%clk 0:02:56]}  f6 {[%clk 0:02:49]} 13. Bd2 {[%clk 0:02:54]}  Bg4 {[%clk 0:02:48]} 14. h3 {[%clk 0:02:53]}  Bh5 {[%clk 0:02:47]} 15. Ne4 {[%clk 0:02:53]}  Bc7 {[%clk 0:02:43]} 16. Nc5 {[%clk 0:02:51]}  Qd6 {[%clk 0:02:27]} 17. g3 {[%clk 0:02:50]}  Rae8 {[%clk 0:02:11]} 18. Nxb7 {[%clk 0:02:31]}  Rxe1+ {[%clk 0:01:38]} 19. Qxe1 {[%clk 0:02:19]}  Qd7 {[%clk 0:01:29]} 20. Kg2 {[%clk 0:02:16]}  Bxf3+ {[%clk 0:01:18]} 21. Kxf3 {[%clk 0:02:17]}  Qxh3 {[%clk 0:01:18]} 22. Nc5 {[%clk 0:02:17]}  f5 {[%clk 0:00:56]} 23. Qh1 {[%clk 0:01:12]}  Qg4+ {[%clk 0:00:54]} 24. Kg2 {[%clk 0:01:13]}  f4 {[%clk 0:00:53]} 25. Qh4 {[%clk 0:01:02]}  Qe2 {[%clk 0:00:46]} 0-1


[Site "https://www.chess.com"]

[Event "Early Titled Tuesday Blitz | February 8 2022"]
[White "Van den Dikkenberg, Erik"]
[Black "Bifulco, Michel"]
[WhiteFideId "1005880"]
[BlackFideId "828580"]
[WhiteElo "2118"]
[BlackElo "2165"]
[Result "1-0"]
[Round "11"]
[TimeControl "180+1"]
[Date "2022.02.08"]
[WhiteClock "0:00:02"]
[BlackClock "0:00:25"]

1. e4 {[%clk 0:03:00]}  e5 {[%clk 0:02:59]} 2. Nf3 {[%clk 0:03:00]}  Nc6 {[%clk 0:03:00]} 3. d4 {[%clk 0:03:00]}  exd4 {[%clk 0:03:00]} 4. Nxd4 {[%clk 0:03:01]}  Nf6 {[%clk 0:02:59]} 5. Nxc6 {[%clk 0:03:00]}  bxc6 {[%clk 0:02:59]} 6. e5 {[%clk 0:03:00]}  Qe7 {[%clk 0:02:59]} 7. Qe2 {[%clk 0:03:00]}  Nd5 {[%clk 0:02:58]} 8. h4 {[%clk 0:03:00]}  Qe6 {[%clk 0:02:57]} 9. c4 {[%clk 0:02:55]}  Nb6 {[%clk 0:02:55]} 10. Nc3 {[%clk 0:02:52]}  d6 {[%clk 0:02:50]} 11. exd6 {[%clk 0:02:50]}  Bxd6 {[%clk 0:02:50]} 12. Be3 {[%clk 0:02:45]}  Ba6 {[%clk 0:02:44]} 13. b3 {[%clk 0:02:44]}  O-O {[%clk 0:02:42]} 14. O-O-O {[%clk 0:02:41]}  Nd5 {[%clk 0:02:36]} 15. cxd5 {[%clk 0:02:36]}  Bxe2 {[%clk 0:02:33]} 16. dxe6 {[%clk 0:02:35]}  Bxd1 {[%clk 0:02:34]} 17. exf7+ {[%clk 0:02:31]}  Rxf7 {[%clk 0:02:32]} 18. Kxd1 {[%clk 0:02:18]}  Bb4 {[%clk 0:02:30]} 19. Kc2 {[%clk 0:02:17]}  Kh8 {[%clk 0:02:27]} 20. Bc4 {[%clk 0:02:16]}  Rd7 {[%clk 0:02:26]} 21. Rd1 {[%clk 0:02:07]}  Rxd1 {[%clk 0:02:23]} 22. Nxd1 {[%clk 0:02:05]}  a5 {[%clk 0:02:22]} 23. a4 {[%clk 0:02:04]}  Rd8 {[%clk 0:02:20]} 24. Nc3 {[%clk 0:02:00]}  h6 {[%clk 0:02:18]} 25. Ne4 {[%clk 0:02:00]}  Re8 {[%clk 0:02:11]} 26. Kd3 {[%clk 0:01:52]}  Re5 {[%clk 0:02:05]} 27. Bf4 {[%clk 0:01:48]}  Re7 {[%clk 0:02:00]} 28. f3 {[%clk 0:01:40]}  Rd7+ {[%clk 0:02:00]} 29. Ke3 {[%clk 0:01:36]}  Kh7 {[%clk 0:01:57]} 30. Ke2 {[%clk 0:01:35]}  Kh8 {[%clk 0:01:56]} 31. h5 {[%clk 0:01:35]}  Kh7 {[%clk 0:01:55]} 32. g4 {[%clk 0:01:35]}  Kh8 {[%clk 0:01:55]} 33. Be5 {[%clk 0:01:33]}  Kh7 {[%clk 0:01:45]} 34. f4 {[%clk 0:01:33]}  Bd6 {[%clk 0:01:43]} 35. Bd3 {[%clk 0:01:25]}  Kg8 {[%clk 0:01:37]} 36. Ke3 {[%clk 0:01:19]}  Re7 {[%clk 0:01:31]} 37. Bc4+ {[%clk 0:01:10]}  Kf8 {[%clk 0:01:31]} 38. Kd4 {[%clk 0:01:06]}  Rd7 {[%clk 0:01:23]} 39. Be6 {[%clk 0:00:53]}  Rd8 {[%clk 0:01:17]} 40. f5 {[%clk 0:00:45]}  Bb4+ {[%clk 0:01:04]} 41. Kc4 {[%clk 0:00:40]}  Bd6 {[%clk 0:01:04]} 42. Bd4 {[%clk 0:00:36]}  Be7 {[%clk 0:01:04]} 43. Bc5 {[%clk 0:00:26]}  Rd1 {[%clk 0:01:01]} 44. Bxe7+ {[%clk 0:00:26]}  Kxe7 {[%clk 0:01:01]} 45. Nc5 {[%clk 0:00:17]}  Rg1 {[%clk 0:00:59]} 46. b4 {[%clk 0:00:16]}  axb4 {[%clk 0:00:58]} 47. Kxb4 {[%clk 0:00:16]}  Rxg4+ {[%clk 0:00:57]} 48. Ka5 {[%clk 0:00:16]}  Rh4 {[%clk 0:00:53]} 49. Ka6 {[%clk 0:00:15]}  Rxh5 {[%clk 0:00:53]} 50. Kb7 {[%clk 0:00:16]}  Rh1 {[%clk 0:00:51]} 51. a5 {[%clk 0:00:16]}  h5 {[%clk 0:00:51]} 52. a6 {[%clk 0:00:16]}  Rb1+ {[%clk 0:00:48]} 53. Kxc6 {[%clk 0:00:15]}  Ra1 {[%clk 0:00:46]} 54. Kxc7 {[%clk 0:00:14]}  h4 {[%clk 0:00:46]} 55. Kc6 {[%clk 0:00:13]}  h3 {[%clk 0:00:44]} 56. f6+ {[%clk 0:00:13]}  gxf6 {[%clk 0:00:43]} 57. Bxh3 {[%clk 0:00:13]}  Kd8 {[%clk 0:00:37]} 58. Kb7 {[%clk 0:00:13]}  Ra3 {[%clk 0:00:33]} 59. a7 {[%clk 0:00:11]}  Rxa7+ {[%clk 0:00:32]} 60. Kxa7 {[%clk 0:00:12]}  Ke7 {[%clk 0:00:31]} 61. Kb6 {[%clk 0:00:12]}  Kd6 {[%clk 0:00:31]} 62. Kb5 {[%clk 0:00:12]}  Ke5 {[%clk 0:00:31]} 63. Kc4 {[%clk 0:00:11]}  f5 {[%clk 0:00:31]} 64. Kd3 {[%clk 0:00:11]}  f4 {[%clk 0:00:31]} 65. Ne4 {[%clk 0:00:10]}  Kd5 {[%clk 0:00:28]} 66. Bg4 {[%clk 0:00:10]}  Ke5 {[%clk 0:00:28]} 67. Nf2 {[%clk 0:00:10]}  f3 {[%clk 0:00:28]} 68. Bxf3 {[%clk 0:00:10]}  Kf4 {[%clk 0:00:28]} 69. Ke2 {[%clk 0:00:10]}  Ke5 {[%clk 0:00:28]} 70. Ke3 {[%clk 0:00:10]}  Kf5 {[%clk 0:00:28]} 71. Be4+ {[%clk 0:00:09]}  Ke5 {[%clk 0:00:28]} 72. Nd3+ {[%clk 0:00:09]}  Ke6 {[%clk 0:00:28]} 73. Kf4 {[%clk 0:00:09]}  Kf6 {[%clk 0:00:28]} 74. Ne5 {[%clk 0:00:08]}  Ke6 {[%clk 0:00:28]} 75. Bf3 {[%clk 0:00:07]}  Kf6 {[%clk 0:00:29]} 76. Bd5 {[%clk 0:00:07]}  Kg7 {[%clk 0:00:28]} 77. Kg5 {[%clk 0:00:07]}  Kh7 {[%clk 0:00:28]} 78. Be6 {[%clk 0:00:05]}  Kg7 {[%clk 0:00:28]} 79. Ng6 {[%clk 0:00:05]}  Kh7 {[%clk 0:00:28]} 80. Bf5 {[%clk 0:00:04]}  Kg7 {[%clk 0:00:29]} 81. Kh5 {[%clk 0:00:04]}  Kh7 {[%clk 0:00:29]} 82. Nf4+ {[%clk 0:00:04]}  Kg7 {[%clk 0:00:29]} 83. Kg5 {[%clk 0:00:04]}  Kf7 {[%clk 0:00:29]} 84. Nh5 {[%clk 0:00:04]}  Kg8 {[%clk 0:00:29]} 85. Kg6 {[%clk 0:00:03]}  Kh8 {[%clk 0:00:26]} 86. Kh6 {[%clk 0:00:02]}  Kg8 {[%clk 0:00:26]} 87. Nf4 {[%clk 0:00:03]}  Kh8 {[%clk 0:00:25]} 88. Ng6+ {[%clk 0:00:02]}  Kg8 {[%clk 0:00:25]} 89. Be6# {[%clk 0:00:02]} 1-0


[Site "https://www.chess.com"]

[Event "Early Titled Tuesday Blitz | February 8 2022"]
[White "Varney, Zoe"]
[Black "Warchol, Kamil"]
[WhiteFideId "436135"]
[BlackFideId "21858241"]
[WhiteElo "1808"]
[BlackElo "1905"]
[Result "0-1"]
[Round "11"]
[TimeControl "180+1"]
[Date "2022.02.08"]
[WhiteClock "0:00:28"]
[BlackClock "0:01:51"]

1. e4 {[%clk 0:03:00]}  c5 {[%clk 0:02:52]} 2. Nf3 {[%clk 0:02:59]}  d6 {[%clk 0:02:52]} 3. d4 {[%clk 0:02:59]}  cxd4 {[%clk 0:02:53]} 4. Nxd4 {[%clk 0:02:59]}  Nf6 {[%clk 0:02:52]} 5. Nc3 {[%clk 0:03:00]}  Nc6 {[%clk 0:02:50]} 6. f3 {[%clk 0:02:57]}  e5 {[%clk 0:02:48]} 7. Nb3 {[%clk 0:02:57]}  Be6 {[%clk 0:02:47]} 8. Be3 {[%clk 0:02:57]}  d5 {[%clk 0:02:46]} 9. exd5 {[%clk 0:02:54]}  Nxd5 {[%clk 0:02:47]} 10. Nxd5 {[%clk 0:02:54]}  Qxd5 {[%clk 0:02:48]} 11. Qxd5 {[%clk 0:02:53]}  Bxd5 {[%clk 0:02:49]} 12. O-O-O {[%clk 0:02:45]}  O-O-O {[%clk 0:02:49]} 13. Nc5 {[%clk 0:02:39]}  b6 {[%clk 0:02:27]} 14. Ba6+ {[%clk 0:02:32]}  Kc7 {[%clk 0:02:26]} 15. Nb7 {[%clk 0:02:11]}  Rd7 {[%clk 0:02:25]} 16. a3 {[%clk 0:02:08]}  Nb8 {[%clk 0:02:21]} 17. Bb5 {[%clk 0:01:52]}  Bc6 {[%clk 0:02:03]} 18. Bxc6 {[%clk 0:01:41]}  Nxc6 {[%clk 0:02:01]} 19. Rxd7+ {[%clk 0:01:37]}  Kxd7 {[%clk 0:02:00]} 20. b4 {[%clk 0:00:51]}  Kc7 {[%clk 0:01:58]} 21. b5 {[%clk 0:00:51]}  Nb8 {[%clk 0:01:55]} 22. Na5 {[%clk 0:00:40]}  bxa5 {[%clk 0:01:53]} 23. Bxa7 {[%clk 0:00:41]}  Nd7 {[%clk 0:01:52]} 24. c4 {[%clk 0:00:33]}  Bxa3+ {[%clk 0:01:49]} 25. Kc2 {[%clk 0:00:32]}  Bc5 {[%clk 0:01:50]} 26. Bxc5 {[%clk 0:00:30]}  Nxc5 {[%clk 0:01:51]} 27. Ra1 {[%clk 0:00:28]}  Kb6 {[%clk 0:01:51]} 0-1


[Site "https://www.chess.com"]

[Event "Early Titled Tuesday Blitz | February 8 2022"]
[White "Visakh N R"]
[Black "Pinheiro, Iung Alicio de O."]
[WhiteFideId "25012223"]
[BlackFideId "2104350"]
[WhiteElo "2454"]
[BlackElo "2607"]
[Result "1-0"]
[Round "11"]
[TimeControl "180+1"]
[Date "2022.02.08"]
[WhiteClock "0:01:21"]
[BlackClock "0:00:41"]

1. g4 {[%clk 0:03:00]}  d5 {[%clk 0:02:58]} 2. Bg2 {[%clk 0:03:01]}  c6 {[%clk 0:02:45]} 3. h3 {[%clk 0:02:56]}  e5 {[%clk 0:02:45]} 4. c4 {[%clk 0:02:56]}  dxc4 {[%clk 0:02:45]} 5. Qc2 {[%clk 0:02:55]}  Be6 {[%clk 0:02:43]} 6. Nf3 {[%clk 0:02:51]}  Nd7 {[%clk 0:02:37]} 7. Na3 {[%clk 0:02:47]}  Bxa3 {[%clk 0:02:33]} 8. bxa3 {[%clk 0:02:47]}  f6 {[%clk 0:02:25]} 9. a4 {[%clk 0:02:43]}  Ne7 {[%clk 0:02:25]} 10. Ba3 {[%clk 0:02:42]}  O-O {[%clk 0:02:24]} 11. Rd1 {[%clk 0:02:39]}  Re8 {[%clk 0:02:21]} 12. O-O {[%clk 0:02:38]}  Nd5 {[%clk 0:02:20]} 13. e3 {[%clk 0:02:34]}  Qa5 {[%clk 0:02:11]} 14. d4 {[%clk 0:02:31]}  cxd3 {[%clk 0:02:06]} 15. Qxd3 {[%clk 0:02:26]}  N7b6 {[%clk 0:02:05]} 16. Nh4 {[%clk 0:02:20]}  Qxa4 {[%clk 0:02:04]} 17. Nf5 {[%clk 0:02:19]}  Nc4 {[%clk 0:01:56]} 18. Bc1 {[%clk 0:02:09]}  Rad8 {[%clk 0:01:56]} 19. e4 {[%clk 0:02:06]}  Nc3 {[%clk 0:01:47]} 20. Qxd8 {[%clk 0:01:58]}  Rxd8 {[%clk 0:01:47]} 21. Rxd8+ {[%clk 0:01:59]}  Kf7 {[%clk 0:01:48]} 22. Be3 {[%clk 0:01:49]}  g6 {[%clk 0:01:46]} 23. Nh6+ {[%clk 0:01:40]}  Kg7 {[%clk 0:01:41]} 24. g5 {[%clk 0:01:34]}  Ne2+ {[%clk 0:01:29]} 25. Kh2 {[%clk 0:01:33]}  Nf4 {[%clk 0:01:13]} 26. Ng4 {[%clk 0:01:27]}  fxg5 {[%clk 0:01:12]} 27. Bc5 {[%clk 0:01:26]}  Bxg4 {[%clk 0:01:04]} 28. hxg4 {[%clk 0:01:27]}  h5 {[%clk 0:00:59]} 29. Rfd1 {[%clk 0:01:25]}  Ne6 {[%clk 0:00:52]} 30. R1d7+ {[%clk 0:01:23]}  Kf6 {[%clk 0:00:41]} 31. Be7+ {[%clk 0:01:23]}  Kf7 {[%clk 0:00:41]} 32. Bxg5# {[%clk 0:01:21]} 1-0


[Site "https://www.chess.com"]

[Event "Early Titled Tuesday Blitz | February 8 2022"]
[White "Vokhidov, Shamsiddin"]
[Black "Harshavardhan G B"]
[WhiteFideId "14204223"]
[BlackFideId "25059009"]
[WhiteElo "2611"]
[BlackElo "1831"]
[Result "1-0"]
[Round "11"]
[TimeControl "180+1"]
[Date "2022.02.08"]
[WhiteClock "0:00:24"]
[BlackClock "0:00:10"]

1. e4 {[%clk 0:03:00]}  c6 {[%clk 0:02:57]} 2. d4 {[%clk 0:03:01]}  d5 {[%clk 0:02:58]} 3. e5 {[%clk 0:03:01]}  Bf5 {[%clk 0:02:57]} 4. h4 {[%clk 0:03:02]}  h5 {[%clk 0:02:56]} 5. Bd3 {[%clk 0:03:02]}  Bxd3 {[%clk 0:02:52]} 6. Qxd3 {[%clk 0:03:03]}  e6 {[%clk 0:02:51]} 7. Bg5 {[%clk 0:03:03]}  Qb6 {[%clk 0:02:47]} 8. Nd2 {[%clk 0:03:03]}  Qa6 {[%clk 0:02:41]} 9. c4 {[%clk 0:03:01]}  Ne7 {[%clk 0:02:40]} 10. Ngf3 {[%clk 0:02:58]}  Nd7 {[%clk 0:02:39]} 11. O-O {[%clk 0:02:57]}  Ng6 {[%clk 0:02:38]} 12. Qc2 {[%clk 0:02:50]}  Be7 {[%clk 0:02:38]} 13. Bxe7 {[%clk 0:02:48]}  Nxe7 {[%clk 0:02:39]} 14. b3 {[%clk 0:02:40]}  Nf5 {[%clk 0:02:37]} 15. Rfe1 {[%clk 0:02:38]}  O-O {[%clk 0:02:34]} 16. Nf1 {[%clk 0:02:36]}  Rac8 {[%clk 0:02:23]} 17. Ne3 {[%clk 0:02:33]}  Nxe3 {[%clk 0:02:16]} 18. fxe3 {[%clk 0:02:26]}  c5 {[%clk 0:02:09]} 19. Ng5 {[%clk 0:02:21]}  g6 {[%clk 0:02:08]} 20. Rac1 {[%clk 0:02:12]}  dxc4 {[%clk 0:01:47]} 21. bxc4 {[%clk 0:02:11]}  b5 {[%clk 0:01:45]} 22. cxb5 {[%clk 0:02:03]}  Qxb5 {[%clk 0:01:43]} 23. Rf1 {[%clk 0:01:59]}  Kg7 {[%clk 0:01:34]} 24. d5 {[%clk 0:01:45]}  exd5 {[%clk 0:01:13]} 25. e6 {[%clk 0:01:43]}  Ne5 {[%clk 0:01:14]} 26. exf7 {[%clk 0:01:39]}  Qb6 {[%clk 0:01:08]} 27. Qc3 {[%clk 0:01:13]}  Qd6 {[%clk 0:00:51]} 28. Rcd1 {[%clk 0:01:08]}  Rc7 {[%clk 0:00:30]} 29. Ne4 {[%clk 0:00:44]}  Qe6 {[%clk 0:00:25]} 30. Nxc5 {[%clk 0:00:38]}  Qd6 {[%clk 0:00:24]} 31. Ne6+ {[%clk 0:00:32]}  Qxe6 {[%clk 0:00:24]} 32. Qxc7 {[%clk 0:00:32]}  Nxf7 {[%clk 0:00:19]} 33. Qc3+ {[%clk 0:00:31]}  Kh7 {[%clk 0:00:19]} 34. Rf6 {[%clk 0:00:31]}  Qe7 {[%clk 0:00:17]} 35. Rdf1 {[%clk 0:00:30]}  Kh6 {[%clk 0:00:17]} 36. Qd4 {[%clk 0:00:28]}  Kh7 {[%clk 0:00:16]} 37. R1f3 {[%clk 0:00:27]}  Ne5 {[%clk 0:00:11]} 38. Rxf8 {[%clk 0:00:24]}  Nxf3+ {[%clk 0:00:12]} 39. Rxf3 {[%clk 0:00:25]}  Qe4 {[%clk 0:00:13]} 40. Rf7+ {[%clk 0:00:24]}  Kh6 {[%clk 0:00:10]} 41. Qh8# {[%clk 0:00:24]} 1-0


[Site "https://www.chess.com"]